[Event "Hunan Belt and Road Open 2019"]
[Site "Hunan"]
[Date "2019.08.05"]
[Round "8.34"]
[White "Xu, Jun"]
[Black "Batsiashvili, Nino"]
[Result "1-0"]
[ECO "E12"]
[WhiteElo "2477"]
[BlackElo "2433"]
[Annotator "ChessBase"]
[PlyCount "102"]
[EventDate "2019.07.29"]
[EventType "swiss"]
[EventCountry "CHN"]
[SourceTitle "playchess.com"]
[Source "ChessBase"]
[SourceQuality "1"]
[TimeControl "5400+30"]

1. d4 {[%emt 0:00:00]} Nf6 {[%emt 0:01:12]} 2. c4 {[%emt 0:00:00]} e6 {[%emt 0:00:03]} 3. Nf3 {[%emt 0:00:00]} b6 {[%emt 0:00:08]} 4. a3 {[%emt 0:00:15]} Bb7 {[%emt 0:00:06]} 5. Nc3 {[%emt 0:00:03]} Ne4 {[%emt 0:00:05]} 6. Nxe4 {[%emt 0:01:03]} Bxe4 {[%emt 0:00:04]} 7. Nd2 {[%emt 0:00:04]} Bg6 {[%emt 0:00:17]} 8. g3 {[%emt 0:00:48]} Nc6 {[%emt 0:00:42]} 9. e3 {[%emt 0:01:13]} e5 {[%emt 0:00:49]} 10. d5 {[%emt 0:02:14]} Na5 {[%emt 0:00:08]} 11. b4 {[%emt 0:01:47]} Nb7 {[%emt 0:00:03]} 12. Bb2 {[%emt 0:00:12]} Bd6 {[%emt 0:00:12]} 13. Bg2 {[%emt 0:03:47]} a5 {[%emt 0:00:53]} 14. Bc3 {[%emt 0:02:15]} O-O {[%emt 0:05:27]} 15. O-O {[%emt 0:05:37]} Qe7 {[%emt 0:04:05]} 16. Ne4 {[%emt 0:14:16]} Bxe4 {[%emt 0:04:12]} 17. Bxe4 {[%emt 0:00:21]} f5 {[%emt 0:00:10]} 18. Bg2 {[%emt 0:00:15]} e4 {[%emt 0:00:43]} 19. Qb3 {[%emt 0:03:11]} Be5 {[%emt 0:04:22]} 20. f3 {[%emt 0:08:51]} exf3 {[%emt 0:11:49]} 21. Bxf3 {[%emt 0:00:43]} d6 {[%emt 0:00:12]} 22. Bg2 {[%emt 0:01:55]} Qf6 {[%emt 0:05:26]} 23. Rac1 {[%emt 0:06:16]} axb4 {[%emt 0:01:47]} 24. axb4 {[%emt 0:00:05]} Bxc3 {[%emt 0:02:42]} 25. Qxc3 {[%emt 0:00:09]} Qxc3 {[%emt 0:00:09]} 26. Rxc3 {[%emt 0:00:02]} Ra4 {[%emt 0:00:08]} 27. Rb3 {[%emt 0:00:35]} g6 {[%emt 0:00:38]} 28. h4 {[%emt 0:12:33]} Rfa8 {[%emt 0:01:43]} 29. e4 {[%emt 0:01:48]} fxe4 {[%emt 0:00:59]} 30. Bxe4 {[%emt 0:00:02]} Ra3 {[%emt 0:00:05]} 31. Rbf3 {[%emt 0:02:51]} Rxf3 {[%emt 0:01:22]} 32. Bxf3 {[%emt 0:00:03]} Ra3 {[%emt 0:12:55]} 33. Kg2 {[%emt 0:00:34]} Nd8 {[%emt 0:02:13]} 34. Bg4 {[%emt 0:01:27]} Rc3 {[%emt 0:04:00]} 35. Rf4 {[%emt 0:00:50]} Re3 {[%emt 0:05:31]} 36. h5 {[%emt 0:01:56]} g5 {[%emt 0:06:39]} 37. Rf1 {[%emt 0:02:19]} Re4 {[%emt 0:01:59]} 38. Kh3 {[%emt 0:00:15]} Rxc4 {[%emt 0:05:07]} 39. h6 {[%emt 0:01:19]} Re4 {[%emt 0:09:47]} 40. Bh5 {[%emt 0:04:03]} Re5 {[%emt 0:00:19]} 41. Ra1 {[%emt 0:01:42]} Kf8 {[%emt 0:00:21]} 42. Ra8 {[%emt 0:00:50]} Ke7 {[%emt 0:00:04]} 43. Rc8 {[%emt 0:01:34]} g4+ {[%emt 0:09:21]} 44. Kh4 {[%emt 0:00:09]} Rxd5 {[%emt 0:00:31]} 45. Rxc7+ {[%emt 0:00:11]} Kf6 {[%emt 0:00:22]} 46. Rxh7 {[%emt 0:02:19]} Rd2 {[%emt 0:00:36]} 47. Rd7 {[%emt 0:00:18]} Nc6 {[%emt 0:00:23]} 48. Rf7+ {[%emt 0:00:30]} Ke6 {[%emt 0:00:43]} 49. h7 {[%emt 0:01:17]} Ne5 {[%emt 0:01:05]} 50. Rf8 {[%emt 0:03:16]} Rh2+ {[%emt 0:01:25]} 51. Kg5 {[%emt 0:00:10]} Kd5 {[%emt 0:00:33]} 1-0

[Event "Hunan Belt and Road Open 2019"]
[Site "Hunan"]
[Date "2019.08.05"]
[Round "8.35"]
[White "Li, Yankai"]
[Black "Setyaki, Azarya Jodi"]
[Result "0-1"]
[ECO "D90"]
[WhiteElo "2439"]
[BlackElo "2409"]
[Annotator "ChessBase"]
[PlyCount "42"]
[EventDate "2019.07.29"]
[EventType "swiss"]
[EventCountry "CHN"]
[SourceTitle "playchess.com"]
[Source "ChessBase"]
[SourceQuality "1"]
[TimeControl "5400+30"]

1. d4 {[%emt 0:03:36]} Nf6 {[%emt 0:00:00]} 2. c4 {[%emt 0:00:03]} g6 {[%emt 0:00:00]} 3. Nc3 {[%emt 0:00:24]} d5 {[%emt 0:00:08]} 4. Nf3 {[%emt 0:01:38]} Bg7 {[%emt 0:00:06]} 5. h4 {[%emt 0:01:05]} c6 {[%emt 0:00:07]} 6. Bg5 {[%emt 0:01:22]} O-O {[%emt 0:00:22]} 7. Bxf6 {[%emt 0:04:11]} Bxf6 {[%emt 0:02:21]} 8. e3 {[%emt 0:00:17]} Bg4 {[%emt 0:05:46]} 9. cxd5 {[%emt 0:06:15]} cxd5 {[%emt 0:01:40]} 10. Qb3 {[%emt 0:00:12]} Bxf3 {[%emt 0:04:15]} 11. gxf3 {[%emt 0:00:15]} e6 {[%emt 0:00:10]} 12. Qxb7 {[%emt 0:11:55]} Nd7 {[%emt 0:00:18]} 13. h5 {[%emt 0:01:29]} Rb8 {[%emt 0:01:02]} 14. Qxa7 {[%emt 0:00:43]} Rxb2 {[%emt 0:00:58]} 15. hxg6 {[%emt 0:27:11]} hxg6 {[%emt 0:00:35]} 16. Bb5 {[%emt 0:00:35]} Ne5 {[%emt 0:25:11]} 17. O-O-O {[%emt 0:10:29]} Rxf2 {[%emt 0:02:13]} 18. dxe5 {[%emt 0:09:54]} Bxe5 {[%emt 0:00:02]} 19. Rdg1 {[%emt 0:07:42]} Bg7 {[%emt 0:05:07]} 20. Bd7 {[%emt 0:08:55]} Qf6 {[%emt 0:05:16]} 21. Qd4 {[%emt 0:00:48]} Qf5 {[%emt 0:00:20]} 0-1

[Event "Hunan Belt and Road Open 2019"]
[Site "Hunan"]
[Date "2019.08.05"]
[Round "8.36"]
[White "Lin, Weiguo"]
[Black "Li, Shilong"]
[Result "0-1"]
[ECO "E69"]
[WhiteElo "2408"]
[BlackElo "2457"]
[Annotator "ChessBase"]
[PlyCount "102"]
[EventDate "2019.07.29"]
[EventType "swiss"]
[EventCountry "CHN"]
[SourceTitle "playchess.com"]
[Source "ChessBase"]
[SourceQuality "1"]
[TimeControl "5400+30"]

1. d4 {[%emt 0:00:00]} Nf6 {[%emt 0:02:12]} 2. c4 {[%emt 0:00:00]} g6 {[%emt 0:00:05]} 3. g3 {[%emt 0:00:00]} Bg7 {[%emt 0:00:04]} 4. Bg2 {[%emt 0:00:00]} O-O {[%emt 0:00:18]} 5. Nc3 {[%emt 0:00:07]} d6 {[%emt 0:00:12]} 6. Nf3 {[%emt 0:00:17]} Nbd7 {[%emt 0:00:08]} 7. O-O {[%emt 0:00:08]} e5 {[%emt 0:00:04]} 8. e4 {[%emt 0:00:07]} c6 {[%emt 0:00:07]} 9. h3 {[%emt 0:00:40]} Qb6 {[%emt 0:00:25]} 10. Re1 {[%emt 0:01:23]} exd4 {[%emt 0:01:11]} 11. Nxd4 {[%emt 0:00:58]} Re8 {[%emt 0:00:05]} 12. Nb3 {[%emt 0:03:27]} Ne5 {[%emt 0:01:43]} 13. Bf1 {[%emt 0:06:51]} Be6 {[%emt 0:00:49]} 14. Be3 {[%emt 0:00:32]} c5 {[%emt 0:05:04]} 15. Nd5 {[%emt 0:06:59]} Bxd5 {[%emt 0:01:47]} 16. exd5 {[%emt 0:00:05]} Ne4 {[%emt 0:10:41]} 17. Kg2 {[%emt 0:04:52]} a5 {[%emt 0:24:40]} 18. Rb1 {[%emt 0:01:23]} a4 {[%emt 0:06:34]} 19. Nd2 {[%emt 0:00:15]} Nd7 {[%emt 0:02:27]} 20. Nxe4 {[%emt 0:02:10]} Rxe4 {[%emt 0:00:01]} 21. Qc2 {[%emt 0:00:50]} Ree8 {[%emt 0:04:20]} 22. h4 {[%emt 0:00:51]} h5 {[%emt 0:01:38]} 23. Be2 {[%emt 0:02:02]} Qc7 {[%emt 0:07:35]} 24. Bf4 {[%emt 0:04:29]} a3 {[%emt 0:01:34]} 25. b3 {[%emt 0:01:08]} Ne5 {[%emt 0:09:04]} 26. Rbd1 {[%emt 0:01:13]} Qd7 {[%emt 0:01:49]} 27. Bc1 {[%emt 0:00:42]} Kf8 {[%emt 0:03:22]} 28. Bf1 {[%emt 0:01:43]} Ng4 {[%emt 0:01:12]} 29. Rxe8+ {[%emt 0:03:55]} Qxe8 {[%emt 0:00:19]} 30. Be2 {[%emt 0:01:14]} Nh6 {[%emt 0:02:50]} 31. Bd3 {[%emt 0:02:17]} Ng4 {[%emt 0:00:14]} 32. Rd2 {[%emt 0:07:43]} Qe5 {[%emt 0:04:52]} 33. Re2 {[%emt 0:00:41]} Qa1 {[%emt 0:00:17]} 34. Bf4 {[%emt 0:07:37]} Ne5 {[%emt 0:01:45]} 35. Bxe5 {[%emt 0:01:12]} dxe5 {[%emt 0:04:00]} 36. b4 {[%emt 0:01:33]} cxb4 {[%emt 0:00:49]} 37. Bxg6 {[%emt 0:04:50]} fxg6 {[%emt 0:00:08]} 38. Qxg6 {[%emt 0:00:01]} b3 {[%emt 0:00:35]} 39. Re3 {[%emt 0:00:40]} Qd1 {[%emt 0:01:14]} 40. Rxe5 {[%emt 0:06:41]} bxa2 {[%emt 0:01:07]} 41. Rf5+ {[%emt 0:07:55]} Kg8 {[%emt 0:00:09]} 42. Qf7+ {[%emt 0:00:32]} Kh8 {[%emt 0:00:12]} 43. Rxh5+ {[%emt 0:00:04]} Qxh5 {[%emt 0:00:05]} 44. Qxh5+ {[%emt 0:00:04]} Kg8 {[%emt 0:00:03]} 45. d6 {[%emt 0:00:13]} a1=Q {[%emt 0:00:21]} 46. Qd5+ {[%emt 0:00:05]} Kf8 {[%emt 0:00:34]} 47. Qxb7 {[%emt 0:00:20]} Re8 {[%emt 0:00:22]} 48. Qf3+ {[%emt 0:02:54]} Bf6 {[%emt 0:00:21]} 49. c5 {[%emt 0:00:05]} Qc3 {[%emt 0:00:51]} 50. Qf5 {[%emt 0:01:24]} a2 {[%emt 0:00:22]} 51. d7 {[%emt 0:00:07]} Rd8 {[%emt 0:00:33]} 0-1

[Event "Hunan Belt and Road Open 2019"]
[Site "Hunan"]
[Date "2019.08.06"]
[Round "9.4"]
[White "Wei, Yi"]
[Black "Narayanan.S.L"]
[Result "1-0"]
[ECO "D00"]
[WhiteElo "2737"]
[BlackElo "2616"]
[Annotator "RC"]
[PlyCount "151"]
[EventDate "2019.07.29"]
[EventType "swiss"]
[EventCountry "CHN"]
[SourceTitle "playchess.com"]
[Source "ChessBase"]
[SourceQuality "1"]
[TimeControl "5400+30"]

1. d4 {[%emt 0:00:00]} Nf6 {[%emt 0:03:53]} 2. Bg5 {[%emt 0:00:00]} d5 {[%emt 0:01:02]} 3. e3 {[%emt 0:00:02]} c5 {[%emt 0:00:53]} 4. c3 {[%emt 0:00:48]} Nc6 {[%emt 0:00:55]} 5. Nd2 {[%emt 0:00:32]} Qb6 {[%emt 0:05:13]} 6. Qc2 {[%emt 0:26:34]} g6 {[%emt 0:07:22]} 7. dxc5 {[%emt 0:07:52]} Qxc5 {[%emt 0:00:11]} 8. Bxf6 {[%emt 0:00:21]} exf6 {[%emt 0:00:04]} 9. Rd1 {[%emt 0:07:16]} Be6 {[%emt 0:03:32]} 10. Nb3 {[%emt 0:06:55]} Qb6 {[%emt 0:00:16]} 11. Ne2 {[%emt 0:02:44]} Bh6 {[%emt 0:10:13]} 12. Ned4 {[%emt 0:00:19]} f5 {[%emt 0:00:43]} 13. g3 {[%emt 0:00:44]} O-O {[%emt 0:02:24]} 14. Bg2 {[%emt 0:00:36]} Rac8 {[%emt 0:00:25]} 15. O-O {[%emt 0:00:18]} Rfd8 {[%emt 0:00:35]} 16. Ne2 {[%emt 0:06:26]} Ne5 {[%emt 0:11:37]} 17. Rd4 {[%emt 0:04:25]} Nc4 {[%emt 0:11:04]} 18. Nf4 {[%emt 0:03:31]} Bxf4 {[%emt 0:01:47]} 19. exf4 {[%emt 0:02:23]} a5 {[%emt 0:00:16]} 20. a4 {[%emt 0:00:53]} Bd7 {[%emt 0:08:30]} 21. Ra1 {[%emt 0:02:05]} Bc6 {[%emt 0:00:12]} 22. Ra2 {[%emt 0:04:14]} Re8 {[%emt 0:00:26]} 23. Rd1 {[%emt 0:00:15]} Rc7 {[%emt 0:01:39]} 24. Nd4 {[%emt 0:00:14]} Rce7 {[%emt 0:00:31]} 25. Bf1 {[%emt 0:01:32]} Re1 {[%emt 0:06:55]} 26. Rxe1 {[%emt 0:02:33]} Rxe1 {[%emt 0:00:04]} 27. b3 {[%emt 0:00:15]} Nd6 {[%emt 0:00:26]} 28. Qd2 {[%emt 0:02:20]} Re8 {[%emt 0:00:36]} 29. f3 {[%emt 0:00:31]} Bd7 {[%emt 0:00:09]} 30. Kg2 {[%emt 0:00:59]} Qc5 {[%emt 0:00:57]} 31. b4 {[%emt 0:06:15]} Qc7 {[%emt 0:00:32]} 32. b5 {[%emt 0:02:27]} b6 {[%emt 0:00:38]} 33. Bd3 {[%emt 0:00:31]} Qc5 {[%emt 0:03:57]} 34. Nb3 {[%emt 0:00:37]} Qc7 {[%emt 0:00:41]} 35. Ra1 {[%emt 0:01:35]} Rc8 {[%emt 0:01:36]} 36. Rc1 {[%emt 0:00:02]} Nc4 {[%emt 0:01:06]} 37. Qf2 {[%emt 0:01:24]} Qd6 {[%emt 0:00:42]} 38. Ra1 {[%emt 0:00:38]} Qc7 {[%emt 0:00:28]} 39. Nd4 {[%emt 0:00:47]} Qc5 {[%emt 0:02:12]} 40. Bxc4 {[%emt 0:01:49]} Qxc4 {[%emt 0:00:24]} 41. Ra3 {[%emt 0:00:04]} Re8 {[%emt 0:01:57]} 42. Qf1 {[%emt 0:01:00]} Re3 {[%emt 0:00:56]} 43. Qxc4 {[%emt 0:01:21]} dxc4 {[%emt 0:00:18]} 44. Kf2 {[%emt 0:00:03]} Rd3 {[%emt 0:00:09]} 45. Ke2 {[%emt 0:00:13]} Kf8 {[%emt 0:01:31]} 46. Nc2 {[%emt 0:00:11]} Ke7 {[%emt 0:00:27]} 47. Ne1 {[%emt 0:00:22]} Rd6 {[%emt 0:00:28]} 48. Ra2 {[%emt 0:00:05]} Be6 {[%emt 0:02:05]} 49. Rd2 {[%emt 0:01:49]} h5 {[%emt 0:00:20]} 50. Nc2 {[%emt 0:01:52]} Rxd2+ {[%emt 0:00:05]} 51. Kxd2 {[%emt 0:00:02]} Kd6 {[%emt 0:00:12]} 52. Ne3 {[%emt 0:00:40]} f6 {[%emt 0:00:51]} 53. Ke1 {[%emt 0:02:48]} Ke7 {[%emt 0:00:23]} 54. Kf2 {[%emt 0:00:09]} Bf7 {[%emt 0:00:06]} 55. Nc2 {[%emt 0:00:37]} Bd5 {[%emt 0:00:18]} 56. Ke3 {[%emt 0:00:22]} Kd6 {[%emt 0:01:33]} 57. Kd4 {[%emt 0:01:00]} Bxf3 {[%emt 0:00:07]} 58. Ne3 {[%emt 0:00:02]} Be4 {[%emt 0:01:30]} 59. Nxc4+ {[%emt 0:00:04]} Kc7 {[%emt 0:00:03]} 60. Ne3 {[%emt 0:00:01]} Kd6 {[%emt 0:00:05]} 61. Nc4+ {[%emt 0:01:24]} Kc7 {[%emt 0:00:04]} 62. Ne3 {[%emt 0:00:04]} Kd6 {[%emt 0:00:25]} 63. h4 {[%emt 0:02:48]} Bb7 {[%emt 0:00:51]} 64. Nc4+ {[%emt 0:00:00]} Kc7 {[%emt 0:00:03]} 65. Ne3 {[%emt 0:00:00]} Kd6 {[%emt 0:00:02]} 66. Nc4+ {[%emt 0:00:00]} Kc7 {[%emt 0:00:02]} 67. Nd2 {[%emt 0:00:10]} Kd6 {[%emt 0:01:58]} 68. c4 {[%emt 0:00:15]} Bg2 {[%emt 0:00:10]} 69. Nb3 {[%emt 0:00:23]} Bf3 {[%emt 0:00:37]} 70. c5+ {[%emt 0:00:09]} bxc5+ {[%emt 0:00:40]} 71. Nxc5 {[%emt 0:00:05]} Bd5 {[%emt 0:00:14]} 72. Nd7 {[%emt 0:00:08]} Bb3 {[%emt 0:00:08]} 73. Nb6 {[%emt 0:00:07]} Bd1 {[%emt 0:01:28]} 74. Nc4+ {[%emt 0:00:06]} Kc7 {[%emt 0:00:08]} 75. Kc5 {[%emt 0:00:03]} Bxa4 {[%emt 0:00:05]} 76. Nxa5 {[%emt 0:00:04]} 1-0